[Event "Cairns Cup 2024"]
[Site "Saint Louis"]
[Date "2024.06.13"]
[Round "1.1"]
[White "Dronavalli, Harika"]
[Black "Dzagnidze, Nana"]
[Result "1/2-1/2"]
[ECO "B44"]
[WhiteElo "2489"]
[BlackElo "2506"]
[Annotator "ChessBase"]
[PlyCount "252"]
[EventDate "2024.06.13"]
[EventType "tourn"]
[EventCountry "USA"]
[SourceTitle "playchess.com"]
[Source "ChessBase"]
[SourceQuality "1"]
[TimeControl "40/5400+30:1800+30"]

1. e4 {[%emt 0:00:00]} c5 {[%emt 0:00:00]} 2. Nf3 {[%emt 0:00:00]} e6 {[%emt 0:00:00]} 3. d4 {[%emt 0:00:00]} cxd4 {[%emt 0:00:00]} 4. Nxd4 {[%emt 0:00:00]} Nc6 {[%emt 0:00:00]} 5. g3 {[%emt 0:00:00]} Nxd4 {[%emt 0:00:00]} 6. Qxd4 {[%emt 0:00:00]} b6 {[%emt 0:00:00]} 7. Bg2 {[%emt 0:00:00]} Bb7 {[%emt 0:00:00]} 8. O-O {[%emt 0:00:00]} Nf6 {[%emt 0:00:00]} 9. Nc3 {[%emt 0:00:00]} Bc5 {[%emt 0:00:00]} 10. Qd3 {[%emt 0:00:00]} O-O {[%emt 0:02:24]} 11. Bg5 {[%emt 0:09:42]} Qc7 {[%emt 0:05:58]} 12. Rad1 {[%emt 0:11:51]} Bc6 {[%emt 0:00:53]} 13. Bxf6 {[%emt 0:07:15]} gxf6 {[%emt 0:00:07]} 14. Kh1 {[%emt 0:00:35]} b5 {[%emt 0:18:41]} 15. Qf3 {[%emt 0:12:08]} Be7 {[%emt 0:13:38]} 16. Qh5 {[%emt 0:08:09]} Qe5 {[%emt 0:06:31]} 17. Qh6 {[%emt 0:06:14]} b4 {[%emt 0:10:19]} 18. f4 {[%emt 0:01:19]} Qc5 {[%emt 0:04:03]} 19. f5 {[%emt 0:08:19]} Kh8 {[%emt 0:02:38]} 20. Ne2 {[%emt 0:05:37]} Qxc2 {[%emt 0:21:45]} 21. Nd4 {[%emt 0:05:20]} Qc5 {[%emt 0:01:41]} 22. Nxc6 {[%emt 0:08:32]} dxc6 {[%emt 0:00:01]} 23. e5 {[%emt 0:01:47]} Qxe5 {[%emt 0:00:10]} 24. fxe6 {[%emt 0:07:01]} fxe6 {[%emt 0:00:49]} 25. Rfe1 {[%emt 0:00:38]} Rad8 {[%emt 0:02:29]} 26. Rc1 {[%emt 0:01:43]} Qg5 {[%emt 0:04:23]} 27. Qxg5 {[%emt 0:01:42]} fxg5 {[%emt 0:00:02]} 28. Rxc6 {[%emt 0:01:24]} Rf2 {[%emt 0:02:44]} 29. Rcxe6 {[%emt 0:00:36]} Bf6 {[%emt 0:00:14]} 30. Rf1 {[%emt 0:01:26]} Rxf1+ {[%emt 0:00:48]} 31. Bxf1 {[%emt 0:00:05]} Bxb2 {[%emt 0:00:20]} 32. Kg2 {[%emt 0:00:20]} a5 {[%emt 0:01:29]} 33. Bb5 {[%emt 0:00:03]} Rd5 {[%emt 0:01:46]} 34. Bc4 {[%emt 0:00:08]} Rc5 {[%emt 0:02:35]} 35. Bb3 {[%emt 0:00:10]} Kg7 {[%emt 0:00:03]} 36. Kf3 {[%emt 0:01:41]} h5 {[%emt 0:00:06]} 37. Ke4 {[%emt 0:02:12]} Bf6 {[%emt 0:00:16]} 38. Ra6 {[%emt 0:01:20]} Re5+ {[%emt 0:00:11]} 39. Kd3 {[%emt 0:00:05]} g4 {[%emt 0:01:15]} 40. Ra7+ {[%emt 0:01:01]} Kg6 {[%emt 0:00:11]} 41. Ra6 {[%emt 0:30:38]} Kf5 {[%emt 0:30:26]} 42. Bf7 {[%emt 0:00:49]} h4 {[%emt 0:01:11]} 43. Bg8 {[%emt 0:00:55]} hxg3 {[%emt 0:01:13]} 44. hxg3 {[%emt 0:00:12]} Rc5 {[%emt 0:00:23]} 45. Be6+ {[%emt 0:00:39]} Kg5 {[%emt 0:00:15]} 46. Ra8 {[%emt 0:00:12]} Rc3+ {[%emt 0:00:35]} 47. Ke4 {[%emt 0:00:18]} Rxg3 {[%emt 0:00:09]} 48. Rxa5+ {[%emt 0:01:07]} Kh4 {[%emt 0:00:06]} 49. Ra6 {[%emt 0:00:21]} Bg5 {[%emt 0:00:36]} 50. Ra7 {[%emt 0:00:41]} Re3+ {[%emt 0:00:46]} 51. Kf5 {[%emt 0:00:08]} Rf3+ {[%emt 0:00:08]} 52. Ke4 {[%emt 0:00:04]} Re3+ {[%emt 0:01:33]} 53. Kf5 {[%emt 0:00:02]} Rf3+ {[%emt 0:00:21]} 54. Ke4 {[%emt 0:00:00]} Rf6 {[%emt 0:00:34]} 55. Rh7+ {[%emt 0:00:39]} Kg3 {[%emt 0:00:34]} 56. Bf5 {[%emt 0:00:30]} Rf8 {[%emt 0:00:32]} 57. Rb7 {[%emt 0:01:23]} Re8+ {[%emt 0:00:09]} 58. Kd3 {[%emt 0:00:29]} Re3+ {[%emt 0:00:24]} 59. Kd4 {[%emt 0:00:52]} Rf3 {[%emt 0:00:32]} 60. Be4 {[%emt 0:00:50]} Rf2 {[%emt 0:01:00]} 61. Rxb4 {[%emt 0:00:17]} Rd2+ {[%emt 0:00:14]} 62. Ke5 {[%emt 0:00:24]} Rxa2 {[%emt 0:00:19]} 63. Bf5 {[%emt 0:00:51]} Bf4+ {[%emt 0:00:22]} 64. Ke4 {[%emt 0:00:38]} Re2+ {[%emt 0:00:13]} 65. Kd3 {[%emt 0:00:46]} Re3+ {[%emt 0:00:20]} 66. Kc2 {[%emt 0:00:20]} Re5 {[%emt 0:00:48]} 67. Bd7 {[%emt 0:00:36]} Rc5+ {[%emt 0:00:08]} 68. Kb3 {[%emt 0:00:28]} Kf3 {[%emt 0:00:13]} 69. Rc4 {[%emt 0:00:30]} Re5 {[%emt 0:00:06]} 70. Bc6+ {[%emt 0:00:46]} Kg3 {[%emt 0:00:28]} 71. Bd7 {[%emt 0:00:10]} Re7 {[%emt 0:00:33]} 72. Rd4 {[%emt 0:00:38]} Kf3 {[%emt 0:00:14]} 73. Bxg4+ {[%emt 0:00:47]} Kxg4 {[%emt 0:00:06]} 74. Kc4 {[%emt 0:00:02]} Kf5 {[%emt 0:00:30]} 75. Rd5+ {[%emt 0:00:05]} Be5 {[%emt 0:00:12]} 76. Kd3 {[%emt 0:00:21]} Rh7 {[%emt 0:00:24]} 77. Rc5 {[%emt 0:00:53]} Rh3+ {[%emt 0:00:10]} 78. Kc4 {[%emt 0:00:07]} Ke4 {[%emt 0:00:06]} 79. Rc6 {[%emt 0:00:09]} Rh1 {[%emt 0:00:31]} 80. Kb5 {[%emt 0:00:14]} Bd4 {[%emt 0:01:07]} 81. Rc8 {[%emt 0:00:28]} Rb1+ {[%emt 0:00:17]} 82. Kc6 {[%emt 0:00:03]} Rb6+ {[%emt 0:00:06]} 83. Kc7 {[%emt 0:00:39]} Re6 {[%emt 0:00:32]} 84. Kd7 {[%emt 0:01:19]} Kd5 {[%emt 0:00:08]} 85. Rc7 {[%emt 0:01:03]} Rh6 {[%emt 0:00:37]} 86. Rb7 {[%emt 0:00:11]} Bb6 {[%emt 0:00:09]} 87. Kc8 {[%emt 0:00:46]} Rh8+ {[%emt 0:01:22]} 88. Kd7 {[%emt 0:00:04]} Bc5 {[%emt 0:00:25]} 89. Rc7 {[%emt 0:00:11]} Rh6 {[%emt 0:03:39]} 90. Rb7 {[%emt 0:00:23]} Bb6 {[%emt 0:00:34]} 91. Kc8 {[%emt 0:00:08]} Rg6 {[%emt 0:00:33]} 92. Kd7 {[%emt 0:00:20]} Kc5 {[%emt 0:00:25]} 93. Rb8 {[%emt 0:01:07]} Kd5 {[%emt 0:00:16]} 94. Rb7 {[%emt 0:00:23]} Rd6+ {[%emt 0:00:44]} 95. Ke7 {[%emt 0:00:38]} Ke5 {[%emt 0:00:06]} 96. Rd7 {[%emt 0:01:13]} Rh6 {[%emt 0:00:06]} 97. Kf7 {[%emt 0:00:09]} Rf6+ {[%emt 0:00:54]} 98. Ke7 {[%emt 0:01:13]} Bc5+ {[%emt 0:00:11]} 99. Kd8 {[%emt 0:00:04]} Bd6 {[%emt 0:00:08]} 100. Kc8 {[%emt 0:00:14]} Rf8+ {[%emt 0:01:20]} 101. Rd8 {[%emt 0:01:09]} Rf3 {[%emt 0:00:30]} 102. Rd7 {[%emt 0:00:50]} Ke6 {[%emt 0:00:42]} 103. Rh7 {[%emt 0:00:14]} Rf8+ {[%emt 0:00:23]} 104. Kb7 {[%emt 0:00:04]} Kd5 {[%emt 0:00:05]} 105. Rh5+ {[%emt 0:00:40]} Be5 {[%emt 0:00:05]} 106. Kb6 {[%emt 0:00:33]} Rb8+ {[%emt 0:00:07]} 107. Ka5 {[%emt 0:00:08]} Rb1 {[%emt 0:01:41]} 108. Ka6 {[%emt 0:00:36]} Kd6 {[%emt 0:00:03]} 109. Ka5 {[%emt 0:00:27]} Bc3+ {[%emt 0:00:50]} 110. Ka4 {[%emt 0:00:11]} Kc6 {[%emt 0:00:45]} 111. Ka3 {[%emt 0:00:39]} Bd4 {[%emt 0:00:30]} 112. Ka2 {[%emt 0:00:37]} Rb4 {[%emt 0:00:11]} 113. Rg5 {[%emt 0:00:45]} Bc5 {[%emt 0:00:29]} 114. Rg3 {[%emt 0:00:24]} Kd5 {[%emt 0:00:02]} 115. Rc3 {[%emt 0:01:06]} Rb8 {[%emt 0:00:30]} 116. Rc2 {[%emt 0:00:44]} Kd4 {[%emt 0:00:18]} 117. Rb2 {[%emt 0:00:10]} Ra8+ {[%emt 0:00:06]} 118. Kb1 {[%emt 0:00:16]} Kd3 {[%emt 0:00:15]} 119. Rb3+ {[%emt 0:00:24]} Kc4 {[%emt 0:00:32]} 120. Rb2 {[%emt 0:00:54]} Bd4 {[%emt 0:02:17]} 121. Ra2 {[%emt 0:00:04]} Rh8 {[%emt 0:00:17]} 122. Kc2 {[%emt 0:00:33]} Bc3 {[%emt 0:00:31]} 123. Ra4+ {[%emt 0:00:38]} Bb4 {[%emt 0:00:02]} 124. Ra2 {[%emt 0:00:47]} Rh3 {[%emt 0:00:55]} 125. Rb2 {[%emt 0:00:31]} Rh2+ {[%emt 0:00:42]} 126. Kb1 {[%emt 0:00:04]} Rh1+ {[%emt 0:00:09]} 1/2-1/2

[Event "Cairns Cup 2024"]
[Site "Saint Louis"]
[Date "2024.06.13"]
[Round "1.2"]
[White "Kosteniuk, Alexandra"]
[Black "Paehtz, Elisabeth"]
[Result "1-0"]
[ECO "B30"]
[WhiteElo "2501"]
[BlackElo "2457"]
[Annotator "TA"]
[PlyCount "101"]
[EventDate "2024.06.13"]
[EventType "tourn"]
[EventCountry "USA"]
[SourceTitle "playchess.com"]
[Source "ChessBase"]
[SourceQuality "1"]
[TimeControl "40/5400+30:1800+30"]

{[%evp 9,101,9,6,0,0,0,10,0,13,4,0,5,10,13,69,15,18,21,24,37,48,57,62,48,72,73,73,72,64,69,97,96,97,77,85,44,103,99,99,100,90,96,87,89,90,80,103,80,103,67,110,101,121,103,95,97,131,126,151,141,218,225,232,229,232,165,239,242,235,210,239,187,279,277,530,520,506,511,693,708,693,670,725,604,4802,2879,29984,29985,29985,29986,29992,29993,29993,29994]} 1. e4 {[%emt 0:00:00]} c5 {[%emt 0:00:00]} 2. Nf3 {[%emt 0:00:00]} Nc6 {[%emt 0:00:00]} 3. Bb5 {[%emt 0:00:00]} e6 {[%emt 0:00:00]} 4. Bxc6 {[%emt 0:00:00]} bxc6 {[%emt 0:00:00]} 5. d3 {[%emt 0:00:00]} Qc7 {[%emt 0:00:00]} 6. e5 {[%emt 0:00:00]} f6 {[%emt 0:00:00]} 7. Bf4 {[%emt 0:00:00]} Ne7 {[%emt 0:00:00]} 8. O-O {[%emt 0:00:00] The position is equal.} fxe5 {[%emt 0:00:00]} 9. Bxe5 {[%emt 0:00:00]} d6 {[%emt 0:00:00]} 10. Bg3 {[%emt 0:00:00][%cal Be5g3,Bg3h4,Bh4f6][%mdl 32]} Nf5 {[%emt 0:00:00]} 11. Nh4 {[%emt 0:00:00] White wants to play Nxf5.} g6 {[%emt 0:00:00]} (11... Nh6 $11) 12. Nd2 {[%emt 0:00:00]} (12. Nxf5 $14 gxf5 13. Nd2) 12... Nxh4 {[%emt 0:00:00]} 13. Bxh4 {[%emt 0:00:00]} Bg7 {[%emt 0:00:00] Dodges Bf6} 14. Qf3 {[%emt 0:00:00]} e5 {[%emt 0:02:26]} 15. Ne4 {[%emt 0:00:00]} Bf5 {[%emt 0:00:11]} 16. Nf6+ {[%emt 0:00:00]} Bxf6 {[%emt 0:06:19]} 17. Bxf6 {[%emt 0:00:00]} O-O {[%emt 0:00:11][%cal Of5e6] [#] ...Be6! would now be deadly.} 18. Bg5 {[%emt 0:00:00]} Rae8 {[%emt 0:02:10]} 19. Rfe1 {[%emt 0:01:51]} Qb6 {[%emt 0:06:51][%cal Of5e6]} 20. b3 {[%emt 0:01:58]} Be6 {[%emt 0:03:15]} 21. Qe3 {[%emt 0:02:08]} Qb4 {[%emt 0:01:24]} 22. Qe4 {[%emt 0:06:14]} Qb6 {[%emt 0:06:49]} ({Better is} 22... Bd5 $14 23. Qxb4 cxb4) 23. Qh4 {[%emt 0:04:47]} Rf5 {[%emt 0:01:55]} 24. Re2 {[%emt 0:02:03]} Ref8 {[%emt 0:27:22]} 25. h3 {[%emt 0:15:16]} R8f7 {[%emt 0:02:50]} 26. Rae1 {[%emt 0:03:46]} Bd7 {[%emt 0:03:44]} 27. c3 {[%emt 0:13:14]} Qa5 {[%emt 0:01:58]} 28. Rc1 {[%emt 0:09:09]} Qa3 {[%emt 0:04:14]} 29. Be3 {[%emt 0:02:39]} Qa6 {[%emt 0:05:32]} 30. Rd2 {[%emt 0:00:48]} Qa3 {[%emt 0:04:22]} 31. Rcc2 {[%emt 0:00:50]} Qa5 {[%emt 0:04:53] Inhibits Qd8+.} 32. d4 {[%emt 0:04:04]} Rh5 {[%emt 0:07:46] [#]} 33. Qg3 {[%emt 0:00:06]} cxd4 {[%emt 0:02:56]} 34. cxd4 {[%emt 0:00:06]} e4 {[%emt 0:04:25]} (34... Rf6 $16 35. dxe5 Qxe5 36. Qxe5 (36. Bxa7 Qxg3 37. fxg3 Kf7 $16) 36... Rxe5 37. Bxa7 Kf7) 35. Qxd6 $18 {[%emt 0:00:53]} Rd5 {[%emt 0:00:03]} 36. Qg3 {[%emt 0:01:19]} Qd8 {[%emt 0:00:07]} 37. Bf4 {[%emt 0:04:23]} Qf6 {[%emt 0:00:34]} (37... Rdf5 {keeps fighting.}) 38. Be5 {[%emt 0:01:58]} Qf5 {[%emt 0:00:03]} 39. b4 {[%emt 0:03:03]} h6 {[%emt 0:00:41]} 40. Rc5 {[%emt 0:07:49]} Kh7 {[%emt 0:01:05] Black is weak on the dark squares} (40... Qg5 {was called for.}) 41. b5 {[%emt 0:37:28]} Rxc5 {[%emt 0:30:09]} (41... Qe6 42. bxc6 Bxc6) 42. dxc5 {[%emt 0:00:01] Black must now prevent Bb2.} cxb5 {[%emt 0:00:04]} 43. Rd6 {[%emt 0:00:17]} e3 {[%emt 0:05:22]} 44. Qxe3 {[%emt 0:01:58]} Re7 {[%emt 0:00:04]} 45. f4 {[%emt 0:01:10]} g5 {[%emt 0:00:46]} 46. Qd4 {[%emt 0:01:11] Rf6 is the strong threat.} Bc8 {[%emt 0:00:26]} 47. Rf6 {[%emt 0:04:13] White threatens Qd6 and mate.} Qb1+ {[%emt 0:00:11]} 48. Kh2 {[%emt 0:00:03] White mates.} Rd7 {[%emt 0:00:20]} 49. Bd6 {[%emt 0:00:24]} Bb7 {[%emt 0:00:15]} 50. fxg5 {[%emt 0:00:52]} hxg5 {[%emt 0:00:58]} 51. Qg4 {[%emt 0:00:19][%csl LRd7,LRg5] Weighted Error Value: White=0.14 (very precise) /Black=0.44.  Mistake:       	White=1     	Black=6      Inaccurate:     	White=2     	Black=4      OK:         	White=14    	Black=11     Best:        	White=4     	Black=2} 1-0

[Event "Cairns Cup 2024"]
[Site "Saint Louis"]
[Date "2024.06.13"]
[Round "1.3"]
[White "Lee, Alice"]
[Black "Tan, Zhongyi"]
[Result "0-1"]
[ECO "A50"]
[WhiteElo "2368"]
[BlackElo "2540"]
[Annotator "RC"]
[PlyCount "118"]
[EventDate "2024.06.13"]
[EventType "tourn"]
[EventCountry "USA"]
[SourceTitle "playchess.com"]
[Source "ChessBase"]
[SourceQuality "1"]
[TimeControl "40/5400+30:1800+30"]

1. d4 {[%emt 0:00:00]} Nf6 {[%emt 0:00:00]} 2. c4 {[%emt 0:00:00]} b6 {[%emt 0:00:00]} 3. Nc3 {[%emt 0:00:00]} Bb7 {[%emt 0:00:00]} 4. a3 {[%emt 0:00:00]} e6 {[%emt 0:00:00]} 5. d5 {[%emt 0:00:00]} Bd6 {[%emt 0:00:00]} 6. Nf3 {[%emt 0:00:00]} O-O {[%emt 0:00:00]} 7. e4 {[%emt 0:00:00]} exd5 {[%emt 0:00:00]} 8. exd5 {[%emt 0:00:00]} c6 {[%emt 0:00:00]} 9. Be2 {[%emt 0:00:00]} cxd5 {[%emt 0:00:00]} 10. cxd5 {[%emt 0:00:00]} Na6 {[%emt 0:00:00]} 11. O-O {[%emt 0:03:10]} Nc7 {[%emt 0:00:00]} 12. Bg5 {[%emt 0:04:18]} h6 {[%emt 0:00:00]} 13. Bh4 {[%emt 0:01:05]} g5 {[%emt 0:03:40]} 14. Bg3 {[%emt 0:02:18]} Bxg3 {[%emt 0:00:23]} 15. hxg3 {[%emt 0:07:50]} Nfxd5 {[%emt 0:02:00]} 16. Nxd5 {[%emt 0:01:46]} Bxd5 {[%emt 0:14:25]} 17. Nd4 {[%emt 0:05:01]} Qf6 {[%emt 0:02:33]} 18. Bd3 {[%emt 0:15:05]} Ne6 {[%emt 0:09:28]} 19. Nf5 {[%emt 0:04:00]} Nc5 {[%emt 0:03:10]} 20. Bc2 {[%emt 0:02:00]} Be6 {[%emt 0:01:02]} 21. Nd4 {[%emt 0:18:36]} Bc4 {[%emt 0:03:40]} 22. Re1 {[%emt 0:00:11]} Rfe8 {[%emt 0:02:25]} 23. Qd2 {[%emt 0:00:59]} Kf8 {[%emt 0:04:39]} 24. Nf5 {[%emt 0:01:11]} d5 {[%emt 0:01:01]} 25. g4 {[%emt 0:09:50]} Qxb2 {[%emt 0:04:15]} 26. Nxh6 {[%emt 0:07:33]} Ne4 {[%emt 0:08:48]} 27. Qd1 {[%emt 0:13:17]} Nc3 {[%emt 0:02:59]} 28. Qf3 {[%emt 0:03:23]} Ne2+ {[%emt 0:00:07]} 29. Kh2 {[%emt 0:01:00]} Nf4 {[%emt 0:04:40]} 30. g3 {[%emt 0:00:46]} Be2 {[%emt 0:08:39]} 31. Qb3 {[%emt 0:01:36]} Qxb3 {[%emt 0:01:39]} 32. Bxb3 {[%emt 0:00:01]} Nd3 {[%emt 0:00:09]} 33. Bxd5 {[%emt 0:00:30]} Rad8 {[%emt 0:01:37]} 34. Bxf7 {[%emt 0:00:26]} Nxe1 {[%emt 0:00:14]} 35. Rxe1 {[%emt 0:00:06]} Re7 {[%emt 0:00:09]} 36. Nf5 {[%emt 0:01:37]} Kxf7 {[%emt 0:00:28]} 37. Nxe7 {[%emt 0:00:38]} Bf3 {[%emt 0:00:05]} 38. Nf5 {[%emt 0:00:43]} Rh8+ {[%emt 0:00:11]} 39. Nh4 {[%emt 0:00:05]} gxh4 {[%emt 0:02:03]} 40. Kh3 {[%emt 0:00:35]} Rg8 {[%emt 0:00:48]} 41. Re3 {[%emt 0:30:32]} Bxg4+ {[%emt 0:30:21]} 42. Kxh4 {[%emt 0:00:04]} Kf6 {[%emt 0:01:41]} 43. f3 {[%emt 0:00:27]} b5 {[%emt 0:01:24]} 44. Rc3 {[%emt 0:01:18]} a5 {[%emt 0:02:28]} 45. Rc6+ {[%emt 0:00:27]} Be6 {[%emt 0:00:06]} 46. g4 {[%emt 0:00:04]} Rh8+ {[%emt 0:00:19]} 47. Kg3 {[%emt 0:00:03]} Rb8 {[%emt 0:01:39]} 48. f4 {[%emt 0:00:23]} Ke7 {[%emt 0:00:05]} 49. f5 {[%emt 0:00:10]} Bd5 {[%emt 0:00:19]} 50. Rc2 {[%emt 0:01:29]} b4 {[%emt 0:00:34]} 51. axb4 {[%emt 0:00:13]} axb4 {[%emt 0:00:08]} 52. Kf4 {[%emt 0:00:34]} b3 {[%emt 0:00:05]} 53. Rb2 {[%emt 0:00:07]} Kd6 {[%emt 0:00:05]} 54. g5 {[%emt 0:00:40]} Rb4+ {[%emt 0:00:12]} 55. Ke3 {[%emt 0:00:04]} Ke5 {[%emt 0:00:31]} 56. Kd3 {[%emt 0:00:36]} Kxf5 {[%emt 0:00:56]} 57. Kc3 {[%emt 0:00:06]} Rf4 {[%emt 0:00:25]} 58. Rd2 {[%emt 0:00:17]} Bf7 {[%emt 0:00:17]} 59. Rg2 {[%emt 0:00:27]} Kg6 {[%emt 0:00:17]} 0-1

[Event "Cairns Cup 2024"]
[Site "Saint Louis"]
[Date "2024.06.13"]
[Round "1.4"]
[White "Krush, Irina"]
[Black "Muzychuk, Anna"]
[Result "1/2-1/2"]
[ECO "D35"]
[WhiteElo "2415"]
[BlackElo "2505"]
[Annotator "TA"]
[PlyCount "94"]
[EventDate "2024.06.13"]
[EventType "tourn"]
[EventCountry "USA"]
[SourceTitle "playchess.com"]
[Source "ChessBase"]
[SourceQuality "1"]
[TimeControl "40/5400+30:1800+30"]

{[%evp 14,94,18,15,27,4,0,5,25,13,19,15,14,7,11,0,10,9,5,0,33,40,28,29,90,97,97,62,56,66,51,59,64,56,58,57,68,68,76,75,48,47,39,35,34,37,38,36,40,40,50,0,0,0,0,0,0,0,0,0,0,0,0,0,0,0,0,0,0,0,0,0,0,0,0,0,0,0,0,0,0,0,0]} 1. d4 {[%emt 0:00:00]} d5 {[%emt 0:00:00]} 2. c4 {[%emt 0:00:00]} e6 {[%emt 0:00:00]} 3. Nc3 {[%emt 0:00:00]} Nf6 {[%emt 0:00:00]} 4. cxd5 {[%emt 0:00:00]} exd5 {[%emt 0:00:00]} 5. Bg5 {[%emt 0:00:00]} Be7 {[%emt 0:00:00]} 6. e3 {[%emt 0:00:00]} h6 {[%emt 0:00:00]} 7. Bf4 {[%emt 0:00:00]} O-O {[%emt 0:00:00]} 8. Bd3 {[%emt 0:00:00]} Re8 {[%emt 0:00:00]} 9. h3 {[%emt 0:00:00]} c5 {[%emt 0:00:00]} 10. Nge2 {[%emt 0:00:00]} Nc6 {[%emt 0:00:00]} 11. O-O {[%emt 0:01:22]} a6 {[%emt 0:03:05]} 12. dxc5 {[%emt 0:11:23]} Bxc5 {[%emt 0:00:03]} 13. Rc1 {[%emt 0:01:14]} Ba7 {[%emt 0:14:57]} 14. Qd2 {[%emt 0:01:14]} d4 {[%emt 0:09:56]} 15. exd4 {[%emt 0:00:49]} Nxd4 {[%emt 0:00:35]} 16. Rfd1 {[%emt 0:09:53][%cal Of4h6]} Qa5 {[%emt 0:19:15]} 17. Nxd4 {[%emt 0:27:26]} Bxd4 {[%emt 0:00:14]} 18. Bc4 {[%emt 0:00:15]} Be5 {[%emt 0:14:42]} (18... Bxc3 $1 $11 19. Rxc3 (19. Qxc3 Qxc3 20. Rxc3 Be6 $14) 19... Qh5) 19. Bxe5 $16 {[%emt 0:02:08]} Rxe5 {[%emt 0:00:33]} 20. Nd5 {[%emt 0:09:07]} Qxd2 {[%emt 0:00:18]} 21. Nxf6+ {[%emt 0:05:09]} gxf6 {[%emt 0:00:02]} 22. Rxd2 {[%emt 0:00:07]} Bf5 {[%emt 0:16:15]} 23. g4 {[%emt 0:02:28]} Be4 {[%emt 0:00:43]} 24. Rd7 {[%emt 0:02:26][%cal Of2f4]} Rf8 {[%emt 0:00:23]} 25. Re1 {[%emt 0:10:36]} Kg7 {[%emt 0:03:36]} 26. Rc7 {[%emt 0:04:01] White has more active pieces.} b5 {[%emt 0:02:26]} 27. f4 {[%emt 0:03:27]} Ree8 {[%emt 0:00:14]} 28. Bb3 {[%emt 0:00:02]} f5 {[%emt 0:03:13]} 29. gxf5 {[%emt 0:01:04]} Kf6 {[%emt 0:02:16]} 30. Kf2 {[%emt 0:00:02]} Kxf5 {[%emt 0:04:00]} 31. Bxf7 {[%emt 0:00:16]} (31. Rxf7+ Rxf7 32. Bxf7 Re7 $11) 31... Rd8 {[%emt 0:01:56] [#]} 32. Bg6+ {[%emt 0:08:56]} Kxg6 $11 {[%emt 0:00:06] The position is equal.} 33. Rxe4 {[%emt 0:00:04][%mdl 4096] Endgame. KRR-KRR} Rd2+ {[%emt 0:00:15]} 34. Kg3 {[%emt 0:01:06]} Rxb2 {[%emt 0:00:16]} 35. Re6+ {[%emt 0:00:30]} Rf6 {[%emt 0:00:30]} 36. Rxf6+ {[%emt 0:00:25]} Kxf6 {[%emt 0:00:01] KR-KR} 37. Rc6+ {[%emt 0:00:08]} Kf5 {[%emt 0:00:19]} 38. Rxa6 {[%emt 0:00:13]} Rc2 {[%emt 0:03:14]} 39. Rxh6 {[%emt 0:00:30] Threatens to win with Rh5+.} Rc3+ {[%emt 0:01:02]} 40. Kh4 {[%emt 0:00:04]} Ra3 {[%emt 0:00:32]} 41. Rh5+ {[%emt 0:32:30]} Kxf4 {[%emt 0:30:06]} 42. Rxb5 {[%emt 0:00:08]} Rxa2 {[%emt 0:00:02]} 43. Kh5 {[%emt 0:00:52]} Ra8 {[%emt 0:00:25]} 44. h4 {[%emt 0:01:36]} Rh8+ {[%emt 0:00:08]} 45. Kg6 {[%emt 0:00:03]} Rxh4 {[%emt 0:00:06]} 46. Rb4+ {[%emt 0:00:05]} Kg3 {[%emt 0:00:05]} 47. Rxh4 {[%emt 0:00:06]} Kxh4 {[%emt 0:00:03] Weighted Error Value: White=0.05 (flawless) /Black=0.06 (flawless) .  Mistake:       	White=1     	Black=1      Inaccurate:     	White=1     	Black=1      OK:         	White=18    	Black=17     Best:        	White=1     	Black=7} 1/2-1/2